[Event "Hungarian Championship Women 2022"]
[Site "Budapest"]
[Date "2022.12.07"]
[Round "3.1"]
[White "Karacsonyi, Kata"]
[Black "Terbe, Zsuzsanna"]
[Result "1/2-1/2"]
[ECO "C03"]
[WhiteElo "2109"]
[BlackElo "2114"]
[Annotator "TA"]
[PlyCount "115"]
[EventDate "2022.12.03"]
[EventType "tourn"]
[EventCountry "HUN"]
[SourceTitle "playchess.com"]
[Source "ChessBase"]
[SourceQuality "1"]
[TimeControl "40/5400+30:1800+30"]

{[%evp 9,115,15,18,16,14,7,-6,-2,7,-6,0,-16,-5,-10,-25,0,0,-18,0,-13,7,-13,0,0,0,3,0,0,12,20,13,3,7,6,43,43,41,34,42,37,47,22,32,20,17,11,6,8,8,17,33,-8,72,24,115,129,187,154,151,115,120,112,122,130,179,75,75,68,103,93,106,105,112,114,112,94,91,45,45,45,46,42,43,43,43,31,31,12,16,8,14,8,14,0,0,0,8,4,70,0,2,0,70,70,70,70,85,85]} 1. e4 {[%emt 0:00:33]} e6 {[%emt 0:06:25]} 2. d4 {[%emt 0:00:10]} d5 {[%emt 0:00:14]} 3. Nd2 {[%emt 0:00:13]} Be7 {[%emt 0:00:06]} 4. c3 {[%emt 0:01:51]} c5 {[%emt 0:00:53]} 5. exd5 {[%emt 0:06:12]} exd5 {[%emt 0:00:26]} 6. dxc5 {[%emt 0:05:12] C03: French Tarrasch: Unusual Black 3rd moves.} Bxc5 {[%emt 0:00:10]} 7. Bb5+ {[%emt 0:00:32]} Nc6 {[%emt 0:00:14][%cal Oc5f2]} 8. Qe2+ {[%emt 0:00:41] [#] The position is equal.} Be7 $146 {[%emt 0:03:38]} ({Predecessor:} 8... Nge7 9. Ngf3 O-O 10. Nb3 Bd6 11. O-O Re8 12. Nbd4 Bd7 13. Qd3 a6 14. Bxc6 bxc6 {0-1 (38) Van der Velde,W (1991)-Van de Griendt,J (2342) Hilversum 2016}) 9. Nb3 {[%emt 0:07:25]} Nf6 {[%emt 0:00:53]} 10. Nd4 {[%emt 0:06:02]} Bd7 {[%emt 0:01:43]} 11. Ngf3 {[%emt 0:00:47]} O-O {[%emt 0:00:34]} 12. O-O {[%emt 0:00:32]} Re8 {[%emt 0:04:41]} 13. Qd1 {[%emt 0:07:38]} a6 {[%emt 0:02:12] And now ...Nxd4 would win.} 14. Ba4 {[%emt 0:01:46]} Rc8 {[%emt 0:08:00]} 15. h3 {[%emt 0:02:20]} h6 {[%emt 0:02:28]} 16. Re1 {[%emt 0:10:08]} Bc5 {[%emt 0:12:37]} 17. Rxe8+ {[%emt 0:15:13]} Qxe8 {[%emt 0:00:35]} 18. Bc2 {[%emt 0:05:19]} Nxd4 {[%emt 0:08:29]} 19. Nxd4 {[%emt 0:01:06]} Qe5 {[%emt 0:00:45]} 20. Be3 {[%emt 0:02:14]} Bd6 {[%emt 0:01:37] White must now prevent ...Qh2+.} 21. Nf3 {[%emt 0:00:16] Against Qh2+} Qh5 {[%emt 0:00:15]} 22. Bd4 {[%emt 0:05:42] Strongly threatening Bxf6.} Ne4 {[%emt 0:04:22] [#]} 23. Ne5 $1 {[%emt 0:01:21]} Qxd1+ {[%emt 0:04:53]} 24. Rxd1 {[%emt 0:00:09]} Be6 {[%emt 0:00:54]} 25. Nf3 {[%emt 0:03:30]} Be7 {[%emt 0:03:10]} 26. Nd2 {[%emt 0:04:40]} Nd6 {[%emt 0:01:47]} 27. f4 {[%emt 0:04:07]} h5 {[%emt 0:05:15]} 28. Re1 {[%emt 0:01:04]} Bh4 {[%emt 0:02:10]} 29. Re2 {[%emt 0:01:35]} Kf8 {[%emt 0:09:11]} 30. Nf1 {[%emt 0:03:01]} g6 {[%emt 0:03:26]} (30... Nb5 $11 {keeps the balance.}) 31. Bxg6 {[%emt 0:00:41]} (31. g3 $16 Be7 {[#]} 32. Bxg6 $1) 31... Bxh3 {[%emt 0:01:35]} (31... Nb5 $1 $11 {remains equal.}) 32. Bxh5 $16 {[%emt 0:00:27]} Bf5 {[%emt 0:00:12]} (32... Be6 $16) 33. g3 {[%emt 0:00:25]} Bd8 {[%emt 0:00:37]} 34. Nd2 {[%emt 0:02:24] White is more active.} Nb5 {[%emt 0:01:39]} 35. Nb3 {[%emt 0:01:06]} Bd3 {[%emt 0:03:25]} 36. Rd2 {[%emt 0:00:53]} Bc4 {[%emt 0:00:28]} (36... Be4 $16) 37. Kg2 {[%emt 0:00:51]} (37. Be3 $18) 37... Nxd4 {[%emt 0:01:18]} 38. Rxd4 {[%emt 0:00:48]} Bf6 {[%emt 0:00:06] ...Bxb3 is the strong threat.} 39. Rd2 {[%emt 0:00:16]} b6 {[%emt 0:02:38]} 40. Bf3 {[%emt 0:00:00]} Rd8 {[%emt 0:00:00]} 41. Nc1 {[%emt 0:06:59]} d4 {[%emt 0:01:19]} 42. b3 {[%emt 0:02:18]} Be6 {[%emt 0:00:18]} 43. cxd4 {[%emt 0:01:12]} (43. c4 $16) 43... Rxd4 $14 {[%emt 0:00:21]} 44. Rxd4 {[%emt 0:01:22]} Bxd4 $16 {[%emt 0:00:03][%mdl 4096] Endgame KBB-KBN} 45. Ne2 {[%emt 0:01:57]} Bb2 {[%emt 0:00:29]} 46. g4 {[%emt 0:02:36]} f6 {[%emt 0:01:48]} 47. Kf2 {[%emt 0:03:18]} a5 {[%emt 0:01:20]} 48. f5 {[%emt 0:03:19]} Bf7 {[%emt 0:00:16]} 49. Bc6 {[%emt 0:00:13]} Ke7 {[%emt 0:01:50]} 50. Nf4 {[%emt 0:04:42]} Kd6 {[%emt 0:01:11]} 51. Be4 {[%emt 0:02:31]} a4 {[%emt 0:03:40]} 52. Bc2 {[%emt 0:00:17]} Bd4+ {[%emt 0:03:17]} 53. Kf3 {[%emt 0:00:11]} Bd5+ {[%emt 0:03:12]} (53... Bb2 $11) 54. Be4 {[%emt 0:00:43]} (54. Nxd5 $14 Kxd5 55. bxa4) 54... Bf7 {[%emt 0:00:42]} 55. Bc2 {[%emt 0:01:45]} ({White should play} 55. bxa4 $11 Bxa2 56. Bd3) 55... Bd5+ $14 {[%emt 0:00:01]} 56. Nxd5 {[%emt 0:04:47]} Kxd5 {[%emt 0:00:10]} 57. bxa4 {[%emt 0:01:02]} Ke5 {[%emt 0:00:09]} 58. Bb3 {[%emt 0:00:14] Black escapes into a draw.   Weighted Error Value: White=0.11 (very precise) /Black=0.15 (very precise)} 1/2-1/2

[Event "Hungarian Championship Women 2022"]
[Site "Budapest"]
[Date "2022.12.07"]
[Round "3.2"]
[White "Mihok-Juhasz, Barbara"]
[Black "Demeter, Dorina"]
[Result "1/2-1/2"]
[ECO "C42"]
[WhiteElo "2206"]
[BlackElo "2149"]
[Annotator "TA"]
[PlyCount "73"]
[EventDate "2022.12.03"]
[EventType "tourn"]
[EventCountry "HUN"]
[SourceTitle "playchess.com"]
[Source "ChessBase"]
[SourceQuality "1"]
[TimeControl "40/5400+30:1800+30"]

{[%evp 18,73,32,29,31,24,33,31,47,32,50,30,28,35,36,-102,-95,-90,-83,-109,-114,-120,-114,-147,-127,-108,-122,-124,-123,-150,-156,-148,-195,-191,-147,-177,-137,-131,0,-178,-177,-224,-191,-259,-266,-237,-133,-147,-137,-181,-105,-115,0,-170,0,-98,0,-169]} 1. e4 {[%emt 0:01:03]} e5 {[%emt 0:01:01]} 2. Nf3 {[%emt 0:00:10]} Nf6 {[%emt 0:00:26]} 3. Nxe5 {[%emt 0:00:06]} d6 {[%emt 0:00:10]} 4. Nf3 {[%emt 0:00:05]} Nxe4 {[%emt 0:00:10]} 5. d4 {[%emt 0:00:08]} d5 {[%emt 0:00:24]} 6. Bd3 {[%emt 0:00:07]} Nc6 {[%emt 0:03:24]} 7. O-O {[%emt 0:03:41]} Be7 {[%emt 0:01:19]} 8. c3 {[%emt 0:01:24]} O-O {[%emt 0:04:53]} 9. Nbd2 {[%emt 0:01:32]} Bf5 {[%emt 0:05:05]} 10. Qc2 {[%emt 0:00:43][%cal Rd2e4]} Nxd2 {[%emt 0:00:44] C42: Petroff Defence: 3 Nxe5 and unusual White 3rd moves.} 11. Bxd2 {[%emt 0:00:05]} Bxd3 {[%emt 0:00:32]} 12. Qxd3 {[%emt 0:00:06]} h6 {[%emt 0:17:40] White is slightly better.} 13. Rfe1 {[%emt 0:20:04]} Qd7 {[%emt 0:14:39]} 14. Bf4 {[%emt 0:18:04]} Rfe8 {[%emt 0:07:29] [#]} 15. Qb5 $146 {[%emt 0:04:56]} (15. Re2 {simplifies} Bd6 16. Bxd6 Rxe2 17. Qxe2 Qxd6 18. Re1) ({Predecessor:} 15. Re2 Bd6 16. Bxd6 Rxe2 17. Qxe2 Qxd6 18. Re1 a6 19. g3 Rd8 20. Kg2 Qf6 21. Qc2 {½-½ (31) Georgescu,L (2259)-Gaehwiler,G (2402) Switzerland 2021}) 15... Bd6 {[%emt 0:14:14]} 16. Qxd5 {[%emt 0:23:18] [#]} (16. Bxd6 $14 Qxd6 17. Rxe8+ (17. Qxb7 Reb8 $11) 17... Rxe8 18. g3 (18. Qxb7 Rb8 $11)) 16... Ne7 $1 $17 {[%emt 0:01:20]} 17. Rxe7 {[%emt 0:07:02]} Qxe7 {[%emt 0:03:01]} 18. Bxd6 {[%emt 0:00:14]} cxd6 {[%emt 0:02:32]} (18... Qxd6 {simplifies} 19. Qxd6 cxd6 20. Kf1 g5) 19. h3 {[%emt 0:00:12]} Qc7 {[%emt 0:04:44]} 20. a4 {[%emt 0:03:01]} Re2 {[%emt 0:03:33]} 21. Qb5 {[%emt 0:00:21]} Re7 {[%emt 0:03:27]} 22. Rd1 {[%emt 0:04:10]} Rae8 {[%emt 0:00:58]} 23. c4 {[%emt 0:06:59]} Qc6 {[%emt 0:02:33]} 24. Qb3 {[%emt 0:01:05]} Re2 {[%emt 0:00:25]} 25. a5 {[%emt 0:00:13]} Qe4 {[%emt 0:01:43] Against Rb1} 26. Rc1 {[%emt 0:02:16] Against Qc2} Qf4 {[%emt 0:04:03]} 27. Rf1 {[%emt 0:00:22]} Qe4 {[%emt 0:00:51]} (27... R8e7 $17 28. Qc3 Qf6) 28. Rc1 $1 $19 {[%emt 0:00:26]} g5 {[%emt 0:00:17]} 29. c5 {[%emt 0:01:27]} (29. Rf1 $142) 29... Qf4 {[%emt 0:01:11]} 30. Rd1 {[%emt 0:00:46]} (30. Rf1 $142) 30... dxc5 {[%emt 0:01:48]} 31. dxc5 {[%emt 0:00:04]} Qf6 {[%emt 0:00:31]} (31... Qf5 $19 32. Qd5 Qxd5 33. Rxd5 Rxb2) 32. Qxb7 $17 {[%emt 0:00:47]} Qxb2 {[%emt 0:00:10]} 33. Qd7 {[%emt 0:00:35]} R8e7 {[%emt 0:01:07]} (33... Qc2 $19 34. c6 Qc5) 34. Qd8+ {[%emt 0:00:20]} Re8 {[%emt 0:00:10]} (34... Kg7 $17 35. c6 Qc2) 35. Qd7 $19 {[%emt 0:00:15]} R8e7 {[%emt 0:00:36] Prevents h4.} ({Black should try} 35... Qc2 $19 36. c6 R2e6) 36. Qd8+ $1 $17 {[%emt 0:01:38]} Re8 {[%emt 0:00:25]} (36... Kh7 $17 37. Qd3+ Kg7) 37. Qd7 {[%emt 0:00:30] Weighted Error Value: White=0.21 (precise) /Black=0.40} 1/2-1/2

[Event "Hungarian Championship Women 2022"]
[Site "Budapest"]
[Date "2022.12.07"]
[Round "3.3"]
[White "Szente Varga, Fruzsina"]
[Black "Havanecz, Bianka"]
[Result "1/2-1/2"]
[ECO "C47"]
[WhiteElo "2075"]
[BlackElo "2210"]
[Annotator "TA"]
[PlyCount "65"]
[EventDate "2022.12.03"]
[EventType "tourn"]
[EventCountry "HUN"]
[SourceTitle "playchess.com"]
[Source "ChessBase"]
[SourceQuality "1"]
[TimeControl "40/5400+30:1800+30"]

{[%evp 16,65,0,0,0,6,8,24,14,6,17,0,0,0,33,18,30,13,34,25,23,22,42,8,16,14,14,12,16,4,18,15,21,0,8,0,0,0,0,0,0,0,0,0,8,-8,-8,-8,-8,-8,-15,-27]} 1. e4 {[%emt 0:00:34]} e5 {[%emt 0:00:37]} 2. Nf3 {[%emt 0:00:06]} Nc6 {[%emt 0:00:05]} 3. Nc3 {[%emt 0:00:05]} Nf6 {[%emt 0:00:06]} 4. d4 {[%emt 0:00:06]} exd4 {[%emt 0:00:06]} 5. Nxd4 {[%emt 0:00:08]} Bb4 {[%emt 0:00:07]} 6. Nxc6 {[%emt 0:00:17]} bxc6 {[%emt 0:00:06]} 7. Bd3 {[%emt 0:00:10]} d5 {[%emt 0:00:19]} 8. Bd2 {[%emt 0:02:45]} O-O {[%emt 0:02:16]} 9. O-O {[%emt 0:00:05]} Bxc3 {[%emt 0:06:50] C47: Scotch Four Knights and Four Knights with 4 g3.} 10. Bxc3 {[%emt 0:00:06]} Nxe4 {[%emt 0:00:30]} 11. Bxe4 {[%emt 0:00:12]} dxe4 {[%emt 0:00:05] White has an edge.} 12. Qe2 {[%emt 0:00:19] 12.Qh5 is the fancy move.} Re8 {[%emt 0:02:07]} 13. Rad1 {[%emt 0:01:40][%mdl 1024] White has compensation.} Qg5 {[%emt 0:00:48] [#] Threatens to win with ...Bg4.} 14. Qe3 {[%emt 0:00:35]} Qg6 {[%emt 0:01:41] [#]} 15. Rd4 $146 {[%emt 0:01:42]} ({Predecessor:} 15. Rfe1 Bg4 16. Rd4 Bf3 17. g3 Qf5 {0-1 (17) Roncea,I (1777)-Mihai,P (1999) ICCF email 2009}) 15... Bg4 {[%emt 0:13:38] Strongly threatening ...Bf3.} (15... f5 {is more complex.} 16. Ra4 Qd6 17. Qg5 Qf8) 16. Qg3 {[%emt 0:05:10] Inhibits Bf3.} Rad8 {[%emt 0:09:13]} (16... Bf5 {is interesting.} 17. Qxc7 c5 18. Ra4 h6) 17. Qxc7 {[%emt 0:15:06]} Rxd4 {[%emt 0:05:52]} 18. Bxd4 {[%emt 0:00:05]} a6 {[%emt 0:00:39]} 19. b4 {[%emt 0:13:55]} Bh3 {[%emt 0:05:10][%csl Gh3][%cal Rg6g2] [#] The position is equal.} 20. Qg3 {[%emt 0:00:07]} Qxg3 {[%emt 0:01:09]} 21. hxg3 $11 {[%emt 0:00:04][%mdl 4096] Endgame KRB-KRB} Be6 {[%emt 0:00:06]} 22. a3 {[%emt 0:01:33]} f5 {[%emt 0:00:26]} 23. Rd1 {[%emt 0:01:27]} Rd8 {[%emt 0:00:14]} 24. Kf1 {[%emt 0:00:45]} Kf7 {[%emt 0:00:15]} 25. Ke2 {[%emt 0:00:13]} g5 {[%emt 0:01:40]} 26. Ke3 {[%emt 0:00:14]} h5 {[%emt 0:01:47]} 27. Rc1 {[%emt 0:08:51]} Bc4 {[%emt 0:00:10]} 28. a4 {[%emt 0:01:09]} Kg6 {[%emt 0:01:19]} 29. Ra1 {[%emt 0:01:09]} Re8 {[%emt 0:05:10]} 30. Ra3 {[%emt 0:05:04]} Bf1 {[%emt 0:05:02][%cal Oh5h4]} 31. Rc3 {[%emt 0:01:17]} Re6 {[%emt 0:00:15] With the idea ...h4.} ({But not} 31... Bxg2 32. Rxc6+ Kh7 33. Rf6 $16 (33. Rxa6 h4 $11)) 32. Rc5 {[%emt 0:01:11]} Bxg2 {[%emt 0:00:29] White must now prevent ...h4.} 33. Be5 $1 {[%emt 0:04:33] An even fight not without its subleties.   Weighted Error Value: White=0.06 (flawless) /Black=0.07 (flawless)} 1/2-1/2

[Event "Hungarian Championship Women 2022"]
[Site "Budapest"]
[Date "2022.12.07"]
[Round "3.4"]
[White "Erdos, Boglarka"]
[Black "Dudas, Eszter"]
[Result "1-0"]
[ECO "C03"]
[WhiteElo "2180"]
[BlackElo "2135"]
[Annotator "TA"]
[PlyCount "91"]
[EventDate "2022.12.03"]
[EventType "tourn"]
[EventCountry "HUN"]
[SourceTitle "playchess.com"]
[Source "ChessBase"]
[SourceQuality "1"]
[TimeControl "40/5400+30:1800+30"]

{[%evp 15,91,16,29,-4,25,18,25,19,20,19,62,63,74,70,90,93,101,80,91,97,126,90,114,106,110,97,114,117,105,70,106,114,120,106,116,115,170,161,185,192,184,198,174,188,222,220,220,206,207,218,462,477,474,465,427,455,476,460,491,447,434,431,593,577,663,626,992,968,1212,1187,1171,1141,1240,1216,6157,6099,1933,865]} 1. e4 {[%emt 0:00:33]} e6 {[%emt 0:00:41]} 2. d4 {[%emt 0:00:09]} d5 {[%emt 0:00:08]} 3. Nd2 {[%emt 0:00:09]} Be7 {[%emt 0:00:24]} 4. Ngf3 {[%emt 0:00:20]} Nf6 {[%emt 0:00:33]} 5. e5 {[%emt 0:00:27]} Nfd7 {[%emt 0:00:05]} 6. Bd3 {[%emt 0:00:23]} c5 {[%emt 0:00:19]} 7. c3 {[%emt 0:00:06]} Nc6 {[%emt 0:00:13]} 8. O-O {[%emt 0:00:28]} g5 {[%emt 0:00:55]} 9. Nb1 {[%emt 0:01:57] C06: French Tarrasch: 3...Nf6 4 e5 Nfd7 5 Bd3 main lines.} g4 {[%emt 0:01:19]} (9... Qb6 {looks sharper.} 10. Nxg5 Bxg5 11. Bxg5 Qxb2 12. Qd2 Qxd2 13. Nxd2 cxd4 14. cxd4 Nxd4 15. Be3 Nc6) 10. Ne1 {[%emt 0:01:27]} h5 {[%emt 0:02:02]} 11. Be3 {[%emt 0:02:27] White has an edge.} Qb6 {[%emt 0:13:03]} 12. b3 {[%emt 0:23:26]} Nf8 {[%emt 0:25:47]} 13. Nc2 {[%emt 0:11:49]} Bd7 {[%emt 0:05:14]} 14. f3 {[%emt 0:10:46][%cal Bf2f3,Bf3f4][%mdl 32] [#]} g3 $146 {[%emt 0:01:50]} ({Predecessor:} 14... Rg8 15. Nd2 Qa5 16. b4 cxb4 17. c4 Qd8 18. Qe2 Bg5 19. f4 Bh6 20. Rab1 a5 {½-½ (49) Roberson,P (2435)-Fodor,T (2518) Daventry 2020}) 15. hxg3 {[%emt 0:00:14]} O-O-O {[%emt 0:02:50]} 16. Nd2 {[%emt 0:01:40][%cal Ob3b4,Bb1d2,Bd2f3,Bf3e5][%mdl 32]} Kb8 {[%emt 0:03:57]} 17. f4 {[%emt 0:02:54]} cxd4 {[%emt 0:01:24]} 18. cxd4 {[%emt 0:01:45]} f5 {[%emt 0:00:31]} 19. exf6 {[%emt 0:08:03]} Bxf6 {[%emt 0:00:05]} 20. Nf3 {[%emt 0:00:38][%cal Ob3b4]} Be8 {[%emt 0:07:09] Inhibits b4.} 21. Bf2 {[%emt 0:07:01]} Qc7 {[%emt 0:07:46][%cal Oh5h4]} 22. b4 {[%emt 0:04:08][%cal Bb3b4,Bb4b5][%mdl 32] Against h4} Qg7 {[%emt 0:00:33][%cal Oh5h4]} 23. b5 $36 {[%emt 0:01:39][%mdl 2048] Prevents h4. White has strong initiative.} Ne7 {[%emt 0:01:00][%cal Oh5h4]} 24. Ne5 {[%emt 0:00:29]} Rg8 {[%emt 0:02:41][%cal Of6h4] [#]} 25. Qf3 $1 {[%emt 0:09:57] White is more active.} h4 {[%emt 0:08:49] [#]} (25... Rc8 $16) 26. g4 $1 $18 {[%emt 0:00:29] g5 is the strong threat.} (26. gxh4 $6 Bh5 27. Qh3 (27. Qxh5 $2 Qxg2#) 27... Nfg6 $14) 26... Bxe5 {[%emt 0:00:53]} 27. dxe5 {[%emt 0:00:04] Threatens to win with Bc5.} (27. fxe5 $6 Bg6 $11) 27... Qxg4 {[%emt 0:00:25]} 28. Qxg4 {[%emt 0:00:10]} Rxg4 {[%emt 0:00:05]} 29. Be2 {[%emt 0:01:14] A strong pair of Bishops.} Rxf4 {[%emt 0:04:15] [#]} 30. Bxa7+ $1 {[%emt 0:00:08][%mdl 576]} Kxa7 {[%emt 0:00:03]} 31. Rxf4 {[%emt 0:00:07]} Nfg6 {[%emt 0:03:14]} 32. Rf6 {[%emt 0:00:47] Hoping for Nd4.} Nxe5 $2 {[%emt 0:01:36]} (32... Bd7 33. Nd4 Nxe5 34. Nxe6 Rg8) 33. Rxe6 {[%emt 0:01:34] White is clearly winning.} N7g6 {[%emt 0:01:33]} 34. b6+ {[%emt 0:00:55]} Kb8 {[%emt 0:00:03]} 35. Nd4 {[%emt 0:00:10]} Bd7 {[%emt 0:00:48]} 36. Rd6 {[%emt 0:02:03]} Rg8 {[%emt 0:00:03]} 37. Rf1 {[%emt 0:02:48] Prevents Nf4.} h3 {[%emt 0:00:08]} 38. g3 {[%emt 0:00:58]} ({Much less strong is} 38. Rxd5 hxg2 39. Rf2 Bh3 $18) 38... Nh4 {[%emt 0:04:18]} 39. Kh2 {[%emt 0:01:08]} Ng2 {[%emt 0:00:05]} 40. Rdf6 {[%emt 0:00:00] Black must now prevent Rf8+.} Ng6 {[%emt 0:00:00] Inhibits Rf8+.} 41. Nf5 {[%emt 0:10:16] Prevents Ne3.} d4 {[%emt 0:12:14]} 42. Bh5 {[%emt 0:12:21]} Bb5 {[%emt 0:07:33]} 43. Rf2 {[%emt 0:04:09]} ({Weaker is} 43. Rxg6 Rxg6 44. Bxg6 Bxf1 $16) 43... Ne3 {[%emt 0:04:48]} 44. Nxd4 {[%emt 0:06:00]} ({Less strong is} 44. Bxg6 Ng4+ 45. Kxh3 Nxf2+ 46. Kg2 Ne4 $14) 44... Nf1+ {[%emt 0:00:41]} 45. Rxf1 {[%emt 0:00:47]} Bxf1 {[%emt 0:00:04]} 46. Rxf1 {[%emt 0:00:17] Weighted Error Value: White=0.08 (flawless) /Black=0.36} (46. Bxg6 $142 Bc4 47. a4) 1-0

[Event "Hungarian Championship Women 2022"]
[Site "Budapest"]
[Date "2022.12.07"]
[Round "3.5"]
[White "Terbe, Julianna"]
[Black "Ivan-Gal, Hanna Krisztina"]
[Result "1/2-1/2"]
[ECO "B40"]
[WhiteElo "2282"]
[BlackElo "2164"]
[Annotator "TA"]
[PlyCount "62"]
[EventDate "2022.12.03"]
[EventType "tourn"]
[EventCountry "HUN"]
[SourceTitle "playchess.com"]
[Source "ChessBase"]
[SourceQuality "1"]
[TimeControl "40/5400+30:1800+30"]

{[%evp 9,62,14,13,18,20,14,15,14,26,28,38,12,31,22,35,0,6,-16,12,15,16,0,9,16,26,25,26,17,20,0,0,0,0,-46,-24,-15,-8,-21,0,-43,-18,-28,0,-6,-13,-52,-52,-55,-12,-70,-47,-67,-65,-68,-44]} 1. e4 {[%emt 0:00:32]} c5 {[%emt 0:00:38]} 2. Nf3 {[%emt 0:00:24]} e6 {[%emt 0:00:10]} 3. g3 {[%emt 0:00:05]} d5 {[%emt 0:00:50]} 4. exd5 {[%emt 0:00:53]} exd5 {[%emt 0:00:12]} 5. d4 {[%emt 0:00:05]} Nc6 {[%emt 0:00:28]} 6. Bg2 {[%emt 0:00:05] B40: Sicilian: 2...e6, Unusual lines.} Bg4 {[%emt 0:00:31]} 7. O-O {[%emt 0:00:07]} cxd4 {[%emt 0:02:28]} 8. Nbd2 {[%emt 0:00:42] The position is equal. is the new trend.} Bc5 {[%emt 0:04:11]} 9. h3 {[%emt 0:02:51]} Bxf3 {[%emt 0:00:49]} 10. Qxf3 {[%emt 0:03:18]} Nge7 {[%emt 0:00:30]} 11. Nb3 {[%emt 0:00:58][%mdl 1024] White has compensation.} Bb6 {[%emt 0:00:31] [#]} 12. h4 $146 {[%emt 0:13:15]} ({Predecessor:} 12. Re1 O-O 13. Bf4 Qd7 14. Rad1 Qf5 15. Bd6 Rfe8 16. Bxe7 Qxf3 17. Bxf3 Rxe7 18. Bxd5 Rxe1+ 19. Rxe1 {1-0 (59) Samusenko,M (2333)-Nasybullina,A (2219) Moscow 2017}) 12... O-O {[%emt 0:02:19]} 13. h5 {[%emt 0:00:15]} h6 {[%emt 0:00:50]} (13... Ne5 $5 {[%cal Re5f3]} 14. Qe2 N7c6 $15) 14. Bf4 {[%emt 0:01:51]} a5 {[%emt 0:06:35]} 15. a4 {[%emt 0:03:40]} Nb4 {[%emt 0:06:05]} 16. c3 {[%emt 0:06:00]} dxc3 {[%emt 0:03:37]} 17. bxc3 {[%emt 0:00:09]} Nbc6 {[%emt 0:01:21]} 18. Rfd1 {[%emt 0:02:24]} Qc8 {[%emt 0:10:51]} 19. Qd3 {[%emt 0:06:36]} Bc7 {[%emt 0:02:46]} 20. Bxc7 {[%emt 0:11:15]} Qxc7 {[%emt 0:00:10]} 21. Bxd5 {[%emt 0:00:08]} (21. Rab1 $11) 21... Nxd5 {[%emt 0:00:34]} 22. Qxd5 {[%emt 0:00:07]} Rfd8 {[%emt 0:09:02]} 23. Qb5 {[%emt 0:04:53]} b6 {[%emt 0:18:06]} (23... Ne5 $5 {[%cal Rc7c3]}) 24. Nd4 {[%emt 0:06:18]} Ne5 {[%emt 0:03:37]} 25. Rab1 {[%emt 0:08:16]} Rac8 {[%emt 0:03:39]} 26. Re1 {[%emt 0:11:00]} Qxc3 {[%emt 0:03:25]} 27. Rxe5 {[%emt 0:01:15] [#] Nf5 is the strong threat.} (27. Qxe5 {simplifies} Qxd4 28. Qxd4 Rxd4 29. Rxb6 Rxa4 30. Ra6) 27... Qxd4 {[%emt 0:00:22]} 28. Rbe1 {[%emt 0:00:29]} Qd6 {[%emt 0:06:30]} 29. R1e4 {[%emt 0:06:22]} (29. Re8+ $11 Rxe8 30. Rxe8+ Rxe8 31. Qxe8+ Qf8 32. Qc6) 29... Rf8 {[%emt 0:02:41] Black is slightly better.} 30. Rd5 {[%emt 0:02:42]} Qc6 {[%emt 0:00:32]} 31. Re7 {[%emt 0:01:43]} Qxb5 {[%emt 0:02:28] Weighted Error Value: White=0.15 (very precise) /Black=0.10 (very precise)} 1/2-1/2